[Event "Sunway Sitges Chess Festival"]
[Date "2024.12.21"]
[White "Mnatsakanyan, Aren"]
[Black "Sayce, Hannah"]
[WhiteElo "1939"]
[BlackElo "1821"]
[Round "6.44"]
[Result "1-0"]
[TimeControl "40/5400+30:1800+30"]

1. c4 {[%clk 1:30:59]} 1... c5 {[%clk 1:29:51]} 2. Nc3 {[%clk 1:31:24]} 2... Nc6
{[%clk 1:30:07]} 3. Nf3 {[%clk 1:31:50]} 3... Nf6 {[%clk 1:29:33]} 4. e3 {[%clk
1:32:14]} 4... g6 {[%clk 1:29:14]} 5. d4 {[%clk 1:32:36]} 5... cxd4 {[%clk
1:29:16]} 6. exd4 {[%clk 1:33:02]} 6... d5 {[%clk 1:29:27]} 7. cxd5 {[%clk
1:33:26]} 7... Nxd5 {[%clk 1:29:34]} 8. Bc4 {[%clk 1:33:49]} 8... Nxc3 {[%clk
1:29:12]} 9. Qb3 {[%clk 1:34:11]} 9... Nd5 {[%clk 1:29:05]} 10. Bxd5 {[%clk
1:34:34]} 10... e6 {[%clk 1:29:22]} 11. Bxc6+ {[%clk 1:35:01]} 11... bxc6 {[%clk
1:29:45]} 12. O-O {[%clk 1:35:28]} 12... Qd5 {[%clk 1:28:20]} 13. Qc3 {[%clk
1:35:03]} 13... Be7 {[%clk 1:24:05]} 14. Bh6 {[%clk 1:33:44]} 14... f6 {[%clk
1:20:31]} 15. Be3 {[%clk 1:32:06]} 15... Kf7 {[%clk 1:19:18]} 16. Rac1 {[%clk
1:30:52]} 16... Bd7 {[%clk 1:18:58]} 17. Nd2 {[%clk 1:30:39]} 17... Rhb8 {[%clk
1:14:07]} 18. Nb3 {[%clk 1:23:50]} 18... Bb4 {[%clk 1:07:50]} 19. Qc2 {[%clk
1:13:36]} 19... Bd6 {[%clk 1:07:28]} 20. Nc5 {[%clk 1:29:34]} 20... Bxc5 {[%clk
1:03:59]} 21. dxc5 {[%clk 1:29:57]} 21... Qxa2 {[%clk 0:55:43]} 22. Rfd1 {[%clk
1:29:20]} 22... Be8 {[%clk 0:52:51]} 23. Qe4 {[%clk 1:16:04]} 23... Rd8 {[%clk
0:41:09]} 24. Rd6 {[%clk 1:25:25]} 24... Rxd6 {[%clk 0:38:11]} 25. cxd6 {[%clk
1:25:51]} 25... Qd5 {[%clk 0:33:49]} 26. Qb4 {[%clk 1:23:19]} 26... Rd8 {[%clk
0:23:27]} 27. Bc5 {[%clk 1:23:42]} 27... e5 {[%clk 0:21:28]} 28. Ra1 {[%clk
1:17:44]} 28... Rd7 {[%clk 0:20:08]} 29. h3 {[%clk 1:18:04]} 29... Ke6 {[%clk
0:17:57]} 30. Qb8 {[%clk 1:17:10]} 30... Bf7 {[%clk 0:16:00]} 31. b4 {[%clk
1:17:30]} 31... Kf5 {[%clk 0:13:52]} 32. Rxa7 {[%clk 1:13:33]} 32... Rxa7 {[%clk
0:14:11]} 33. Qxa7 {[%clk 1:13:59]} 33... h5 {[%clk 0:11:31]} 34. Qa4 {[%clk
1:11:27]} 34... h4 {[%clk 0:08:18]} 35. Qc2+ {[%clk 1:11:13]} 35... Ke6 {[%clk
0:08:00]} 36. Qe2 {[%clk 1:06:47]} 36... f5 {[%clk 0:06:12]} 37. f4 {[%clk
1:09:07]} 37... Be8 {[%clk 0:04:20]} 38. Qf2 {[%clk 1:05:34]} 38... Qe4 {[%clk
0:02:01]} 39. Qa2+ {[%clk 1:06:48]} 39... Qd5 {[%clk 0:01:27]} 40. Qa8 {[%clk
1:36:36]} 40... Qd1+ {[%clk 0:30:40]} 41. Kh2 {[%clk 1:36:57]} 41... Bd7 {[%clk
0:18:07]} 42. Qg8+ {[%clk 1:37:02]} 42... Kf6 {[%clk 0:18:15]} 43. Qd8+ {[%clk
1:34:47]} 43... Ke6 {[%clk 0:18:22]} 44. Qe7+ {[%clk 1:35:11]} 44... Kd5 {[%clk
0:18:45]} 45. Qxd7 {[%clk 1:35:12]} 45... Qc1 {[%clk 0:18:53]} 46. Qf7+ {[%clk
1:35:26]} 46... Ke4 {[%clk 0:19:09]} 47. Qb3 {[%clk 1:34:27]} 47... Qxf4+ {[%clk
0:19:30]} 48. Kh1 {[%clk 1:34:52]} 48... Qc1+ {[%clk 0:17:30]} 49. Bg1 {[%clk
1:35:17]} 49... f4 {[%clk 0:17:27]} 50. Qf3+ {[%clk 1:35:10]} 50... Kf5 {[%clk
0:17:52]} 51. d7 {[%clk 1:35:33]} 51... Qd2 {[%clk 0:16:44]} 52. Qxc6 {[%clk
1:35:31]} 52... f3 {[%clk 0:13:11]} 53. Qxf3+ {[%clk 1:35:43]} 53... Ke6 {[%clk
0:13:35]} 54. Qc6+ {[%clk 1:35:52]} 54... Ke7 {[%clk 0:13:56]} 55. Bc5+ {[%clk
1:36:10]} 55... Kf7 {[%clk 0:13:54]} 56. Qc8 {[%clk 1:36:17]} 56... Qd3 {[%clk
0:13:09]} 1-0

[Variant "Standard"]
[Site "Europe Echecs"]

[Event "Sunway Sitges Chess Festival"]
[Date "2024.12.21"]
[White "Maurizzi, Marc`Andria"]
[Black "Gorshtein, Ido"]
[WhiteElo "2477"]
[BlackElo "2422"]
[Round "7.1"]
[Result "1/2-1/2"]
[TimeControl "40/5400+30:1800+30"]

1. d4 {[%clk 1:30:43]} 1... Nf6 {[%clk 1:30:12]} 2. c4 {[%clk 1:30:10]} 2... e6
{[%clk 1:30:35]} 3. Nf3 {[%clk 1:30:19]} 3... b6 {[%clk 1:30:58]} 4. g3 {[%clk
1:27:25]} 4... Ba6 {[%clk 1:30:58]} 5. b3 {[%clk 1:26:04]} 5... Bb4+ {[%clk
1:31:17]} 6. Bd2 {[%clk 1:26:28]} 6... Be7 {[%clk 1:31:41]} 7. Bg2 {[%clk
1:25:14]} 7... c6 {[%clk 1:32:04]} 8. O-O {[%clk 1:22:25]} 8... d5 {[%clk
1:31:20]} 9. Qc2 {[%clk 1:22:43]} 9... O-O {[%clk 1:30:58]} 10. Rd1 {[%clk
1:12:35]} 10... Nbd7 {[%clk 1:30:52]} 11. Bf4 {[%clk 1:12:12]} 11... Rc8 {[%clk
1:28:40]} 12. Nc3 {[%clk 1:05:57]} 12... dxc4 {[%clk 1:23:50]} 13. e4 {[%clk
1:01:20]} 13... h6 {[%clk 1:21:34]} 14. h4 {[%clk 0:57:56]} 14... Nh5 {[%clk
1:14:45]} 15. Be3 {[%clk 0:55:41]} 15... Nhf6 {[%clk 1:14:57]} 16. Bf4 {[%clk
0:55:21]} 16... Nh5 {[%clk 1:14:44]} 17. Bc1 {[%clk 0:45:01]} 17... Nhf6 {[%clk
1:14:30]} 18. Ne2 {[%clk 0:35:58]} 18... cxb3 {[%clk 1:06:55]} 19. axb3 {[%clk
0:36:02]} 19... Bxe2 {[%clk 1:07:18]} 20. Qxe2 {[%clk 0:36:31]} 20... a5 {[%clk
1:07:15]} 21. Ne1 {[%clk 0:30:28]} 21... Bb4 {[%clk 0:55:05]} 22. Nc2 {[%clk
0:26:32]} 22... Qe7 {[%clk 0:52:32]} 23. Nxb4 {[%clk 0:24:01]} 23... axb4 {[%clk
0:52:53]} 24. g4 {[%clk 0:23:15]} 24... Nh7 {[%clk 0:45:55]} 25. g5 {[%clk
0:21:41]} 25... hxg5 {[%clk 0:40:00]} 26. hxg5 {[%clk 0:22:04]} 26... c5 {[%clk
0:38:16]} 27. d5 {[%clk 0:17:37]} 27... e5 {[%clk 0:30:33]} 28. Bh3 {[%clk
0:15:00]} 28... Qd6 {[%clk 0:30:19]} 29. Ra7 {[%clk 0:14:10]} 29... Rfd8 {[%clk
0:29:46]} 30. Kg2 {[%clk 0:11:07]} 30... Ra8 {[%clk 0:26:39]} 31. Rxa8 {[%clk
0:07:23]} 31... Rxa8 {[%clk 0:27:00]} 32. Qb5 {[%clk 0:05:31]} 32... Ndf8 {[%clk
0:27:20]} 33. Qc6 {[%clk 0:04:25]} 33... Qd8 {[%clk 0:27:48]} 34. Kf1 {[%clk
0:02:18]} 34... Ra1 {[%clk 0:23:05]} 35. g6 {[%clk 0:01:36]} 35... Nxg6 {[%clk
0:22:37]} 36. d6 {[%clk 0:02:01]} 36... Nhf8 {[%clk 0:14:12]} 37. d7 {[%clk
0:01:37]} 37... Nf4 {[%clk 0:14:22]} 38. Qc8 {[%clk 0:00:34]} 38... N8e6 {[%clk
0:12:47]} 39. Bg4 {[%clk 0:00:36]} 39... Kf8 {[%clk 0:11:21]} 40. Bxf4 {[%clk
0:30:33]} 40... Rxd1+ {[%clk 0:41:37]} 41. Bxd1 {[%clk 0:29:45]} 41... exf4
{[%clk 0:41:50]} 42. Be2 {[%clk 0:27:10]} 42... Ke7 {[%clk 0:40:34]} 43. Bb5
{[%clk 0:26:46]} 43... f6 {[%clk 0:29:52]} 44. Qb7 {[%clk 0:25:19]} 44... Nd4
{[%clk 0:18:45]} 45. Ba4 {[%clk 0:25:33]} 45... Nf3 {[%clk 0:19:03]} 46. Ke2
{[%clk 0:20:31]} 46... Nd4+ {[%clk 0:19:22]} 47. Kf1 {[%clk 0:20:59]} 47... Nf3
{[%clk 0:19:47]} 48. Ke2 {[%clk 0:21:27]} 48... Ne5 {[%clk 0:20:13]} 49. f3
{[%clk 0:15:29]} 49... g5 {[%clk 0:19:11]} 50. Bb5 {[%clk 0:15:35]} 50... c4
{[%clk 0:05:40]} 51. bxc4 {[%clk 0:06:12]} 51... b3 {[%clk 0:06:08]} 52. Kd1
{[%clk 0:06:25]} 52... Nxf3 {[%clk 0:03:19]} 1/2-1/2

[Variant "Standard"]
[Site "Europe Echecs"]

[Event "Sunway Sitges Chess Festival"]
[Date "2024.12.21"]
[White "Girel, Joseph"]
[Black "Ivanchuk, Vasyl"]
[WhiteElo "2494"]
[BlackElo "2630"]
[Round "7.2"]
[Result "1-0"]
[TimeControl "40/5400+30:1800+30"]

1. d4 {[%clk 1:30:44]} 1... Nf6 {[%clk 1:30:26]} 2. c4 {[%clk 1:30:55]} 2... c6
{[%clk 1:30:23]} 3. Nf3 {[%clk 1:29:46]} 3... d5 {[%clk 1:28:10]} 4. e3 {[%clk
1:30:01]} 4... Bf5 {[%clk 1:24:54]} 5. Nc3 {[%clk 1:30:08]} 5... a6 {[%clk
1:25:17]} 6. Ne5 {[%clk 1:29:17]} 6... Nbd7 {[%clk 1:25:16]} 7. Qb3 {[%clk
1:28:07]} 7... Qc7 {[%clk 1:25:10]} 8. cxd5 {[%clk 1:28:00]} 8... Nxe5 {[%clk
1:25:15]} 9. dxe5 {[%clk 1:28:20]} 9... Nxd5 {[%clk 1:25:43]} 10. Bc4 {[%clk
1:27:48]} 10... e6 {[%clk 1:24:53]} 11. e4 {[%clk 1:28:09]} 11... Nxc3 {[%clk
1:25:18]} 12. exf5 {[%clk 1:28:30]} 12... Nd5 {[%clk 1:25:41]} 13. Bxd5 {[%clk
1:28:41]} 13... cxd5 {[%clk 0:41:28]} 14. O-O {[%clk 1:22:40]} 14... Qd7 {[%clk
0:41:56]} 15. Be3 {[%clk 1:04:13]} 15... Be7 {[%clk 0:36:59]} 16. Rac1 {[%clk
0:59:57]} 16... exf5 {[%clk 0:37:54]} 17. Rfd1 {[%clk 0:48:50]} 17... O-O {[%clk
0:22:02]} 18. Rxd5 {[%clk 0:45:43]} 18... Qe6 {[%clk 0:22:29]} 19. Rc7 {[%clk
0:38:10]} 19... b5 {[%clk 0:22:34]} 20. Rdd7 {[%clk 0:33:54]} 20... Qxb3 {[%clk
0:22:55]} 21. axb3 {[%clk 0:34:21]} 21... Rfd8 {[%clk 0:23:21]} 22. g4 {[%clk
0:34:41]} 22... Rxd7 {[%clk 0:22:24]} 23. Rxd7 {[%clk 0:35:07]} 23... f4 {[%clk
0:22:49]} 24. Bxf4 {[%clk 0:33:51]} 24... Bc5 {[%clk 0:23:17]} 25. Kg2 {[%clk
0:31:50]} 25... h6 {[%clk 0:23:39]} 26. h4 {[%clk 0:29:11]} 26... Re8 {[%clk
0:23:24]} 27. h5 {[%clk 0:27:51]} 27... Re6 {[%clk 0:23:51]} 28. Bg3 {[%clk
0:23:50]} 28... f6 {[%clk 0:24:11]} 29. f4 {[%clk 0:20:12]} 29... fxe5 {[%clk
0:24:16]} 30. fxe5 {[%clk 0:20:07]} 30... Re7 {[%clk 0:19:34]} 31. Rd8+ {[%clk
0:18:25]} 31... Kf7 {[%clk 0:18:13]} 32. Kf3 {[%clk 0:18:29]} 32... Ke6 {[%clk
0:18:39]} 33. Ke4 {[%clk 0:18:12]} 33... Rc7 {[%clk 0:18:44]} 34. Re8+ {[%clk
0:18:13]} 34... Be7 {[%clk 0:19:03]} 35. Bh4 {[%clk 0:18:09]} 1-0

[Variant "Standard"]
[Site "Europe Echecs"]

[Event "Sunway Sitges Chess Festival"]
[Date "2024.12.21"]
[White "Moussard, Jules"]
[Black "Raczek, Krzysztof"]
[WhiteElo "2649"]
[BlackElo "2443"]
[Round "7.3"]
[Result "1-0"]
[TimeControl "40/5400+30:1800+30"]

1. e4 {[%clk 1:25:53]} 1... c6 {[%clk 1:28:11]} 2. d4 {[%clk 1:26:13]} 2... d5
{[%clk 1:28:33]} 3. e5 {[%clk 1:26:36]} 3... Bf5 {[%clk 1:28:55]} 4. Nf3 {[%clk
1:26:58]} 4... e6 {[%clk 1:29:19]} 5. Be2 {[%clk 1:27:24]} 5... Ne7 {[%clk
1:28:34]} 6. O-O {[%clk 1:27:16]} 6... Nd7 {[%clk 1:26:39]} 7. c3 {[%clk
1:26:20]} 7... h6 {[%clk 1:26:39]} 8. Na3 {[%clk 1:26:25]} 8... Bh7 {[%clk
1:21:50]} 9. Nc2 {[%clk 1:23:47]} 9... c5 {[%clk 1:18:25]} 10. dxc5 {[%clk
1:20:03]} 10... Nxc5 {[%clk 1:17:24]} 11. Ncd4 {[%clk 1:16:38]} 11... a6 {[%clk
1:10:30]} 12. Be3 {[%clk 1:09:22]} 12... Rc8 {[%clk 0:57:37]} 13. Rc1 {[%clk
1:07:08]} 13... g5 {[%clk 0:47:48]} 14. c4 {[%clk 0:56:14]} 14... dxc4 {[%clk
0:35:54]} 15. Bxc4 {[%clk 0:54:23]} 15... Bg7 {[%clk 0:28:51]} 16. b4 {[%clk
0:20:21]} 16... Ne4 {[%clk 0:24:15]} 17. Qb3 {[%clk 0:19:31]} 17... O-O {[%clk
0:20:52]} 18. Nxe6 {[%clk 0:15:29]} 18... fxe6 {[%clk 0:21:12]} 19. Bxe6+ {[%clk
0:15:55]} 19... Kh8 {[%clk 0:21:39]} 20. Bxc8 {[%clk 0:16:11]} 20... Nxc8 {[%clk
0:21:24]} 21. Nd4 {[%clk 0:14:44]} 21... Nd2 {[%clk 0:19:05]} 22. Bxd2 {[%clk
0:14:21]} 22... Qxd4 {[%clk 0:19:33]} 23. Bc3 {[%clk 0:14:17]} 23... Qb6 {[%clk
0:18:24]} 24. e6 {[%clk 0:13:47]} 24... Ne7 {[%clk 0:18:04]} 25. Bxg7+ {[%clk
0:08:55]} 25... Kxg7 {[%clk 0:18:28]} 26. Qc3+ {[%clk 0:09:18]} 26... Rf6 {[%clk
0:16:50]} 27. Rcd1 {[%clk 0:09:25]} 27... Bf5 {[%clk 0:08:43]} 28. Rd7 {[%clk
0:07:57]} 28... Qxe6 {[%clk 0:09:01]} 29. Rxb7 {[%clk 0:08:18]} 29... Kg6 {[%clk
0:08:00]} 30. Re1 {[%clk 0:07:30]} 30... Be4 {[%clk 0:04:52]} 31. Qe3 {[%clk
0:05:48]} 31... Bxb7 {[%clk 0:03:50]} 32. Qxe6 {[%clk 0:06:14]} 32... Rxe6
{[%clk 0:04:17]} 33. Rxe6+ {[%clk 0:06:39]} 33... Kf7 {[%clk 0:04:45]} 34. Rxh6
{[%clk 0:07:01]} 34... Bc6 {[%clk 0:04:21]} 35. f3 {[%clk 0:07:09]} 35... Bb5
{[%clk 0:04:44]} 36. a4 {[%clk 0:06:31]} 36... Bc4 {[%clk 0:04:21]} 37. Rd6
{[%clk 0:06:17]} 37... Nd5 {[%clk 0:03:01]} 38. b5 {[%clk 0:06:30]} 38... axb5
{[%clk 0:03:25]} 39. axb5 {[%clk 0:06:56]} 39... Ke7 {[%clk 0:03:06]} 40. Rc6
{[%clk 0:37:18]} 1-0

[Variant "Standard"]
[Site "Europe Echecs"]

[Event "Sunway Sitges Chess Festival"]
[Date "2024.12.21"]
[White "Anwesh, Upadhyaya"]
[Black "Tin, Jingyao"]
[WhiteElo "2379"]
[BlackElo "2480"]
[Round "7.4"]
[Result "1/2-1/2"]
[TimeControl "40/5400+30:1800+30"]

1. e4 {[%clk 1:28:53]} 1... e5 {[%clk 1:30:38]} 2. Nf3 {[%clk 1:28:59]} 2... Nc6
{[%clk 1:31:03]} 3. d4 {[%clk 1:28:59]} 3... exd4 {[%clk 1:31:21]} 4. Bc4 {[%clk
1:29:11]} 4... Nf6 {[%clk 1:30:55]} 5. O-O {[%clk 1:29:32]} 5... Nxe4 {[%clk
1:30:37]} 6. Re1 {[%clk 1:29:55]} 6... d5 {[%clk 1:30:50]} 7. Bxd5 {[%clk
1:30:14]} 7... Qxd5 {[%clk 1:31:05]} 8. Nc3 {[%clk 1:30:38]} 8... Qd7 {[%clk
1:21:46]} 9. Rxe4+ {[%clk 1:26:15]} 9... Be7 {[%clk 1:20:09]} 10. Nxd4 {[%clk
1:26:37]} 10... f5 {[%clk 1:19:39]} 11. Rf4 {[%clk 1:25:49]} 11... O-O {[%clk
1:17:30]} 12. Nxc6 {[%clk 1:19:28]} 12... Qxc6 {[%clk 1:14:33]} 13. Nd5 {[%clk
1:16:44]} 13... Bd6 {[%clk 1:11:39]} 14. Rd4 {[%clk 1:14:09]} 14... Be6 {[%clk
1:09:23]} 15. Bf4 {[%clk 1:10:52]} 15... Bxd5 {[%clk 0:57:36]} 16. Bxd6 {[%clk
1:11:00]} 16... Bxg2 {[%clk 0:56:48]} 17. Bxf8 {[%clk 1:10:44]} 17... Bf3 {[%clk
0:53:32]} 18. Qd3 {[%clk 1:07:31]} 18... Qg6+ {[%clk 0:50:39]} 19. Kf1 {[%clk
1:07:54]} 19... Qg2+ {[%clk 0:50:38]} 20. Ke1 {[%clk 1:08:20]} 20... Re8+ {[%clk
0:46:18]} 21. Kd2 {[%clk 1:05:29]} 21... Qxf2+ {[%clk 0:46:32]} 22. Kc3 {[%clk
1:05:43]} 22... Re3 {[%clk 0:46:47]} 23. Bc5 {[%clk 1:04:42]} 23... Rxd3+ {[%clk
0:47:04]} 24. cxd3 {[%clk 1:05:06]} 24... Qxh2 {[%clk 0:44:31]} 25. Re1 {[%clk
0:53:37]} 25... h5 {[%clk 0:38:00]} 26. Rd7 {[%clk 0:53:45]} 26... Bc6 {[%clk
0:33:08]} 27. Rde7 {[%clk 0:51:53]} 27... Bd5 {[%clk 0:31:19]} 28. Rd7 {[%clk
0:40:47]} 28... Bc6 {[%clk 0:27:32]} 29. Rde7 {[%clk 0:41:00]} 29... Bd5 {[%clk
0:27:01]} 30. Rd7 {[%clk 0:34:42]} 1/2-1/2

[Variant "Standard"]
[Site "Europe Echecs"]

[Event "Sunway Sitges Chess Festival"]
[Date "2024.12.21"]
[White "Siddharth, Jagadeesh"]
[Black "Abergel, Thal"]
[WhiteElo "2510"]
[BlackElo "2411"]
[Round "7.5"]
[Result "1/2-1/2"]
[TimeControl "40/5400+30:1800+30"]

1. e4 {[%clk 1:21:37]} 1... d6 {[%clk 1:30:47]} 2. d4 {[%clk 1:22:02]} 2... Nf6
{[%clk 1:31:11]} 3. Nc3 {[%clk 1:22:24]} 3... e5 {[%clk 1:31:35]} 4. Nf3 {[%clk
1:22:49]} 4... Nbd7 {[%clk 1:32:00]} 5. Bc4 {[%clk 1:23:10]} 5... Be7 {[%clk
1:32:26]} 6. O-O {[%clk 1:23:30]} 6... O-O {[%clk 1:32:51]} 7. Re1 {[%clk
1:23:54]} 7... c6 {[%clk 1:32:53]} 8. a4 {[%clk 1:23:50]} 8... h6 {[%clk
1:33:00]} 9. h3 {[%clk 1:23:46]} 9... Re8 {[%clk 1:33:16]} 10. a5 {[%clk
1:24:08]} 10... Qc7 {[%clk 1:29:21]} 11. Be3 {[%clk 1:24:27]} 11... exd4 {[%clk
1:28:49]} 12. Bxd4 {[%clk 1:16:48]} 12... Bf8 {[%clk 1:27:29]} 13. Nh4 {[%clk
1:16:54]} 13... Ne5 {[%clk 1:25:14]} 14. Be2 {[%clk 1:16:34]} 14... Ned7 {[%clk
0:57:11]} 15. Nf5 {[%clk 0:50:54]} 15... g6 {[%clk 1:21:09]} 16. Ng3 {[%clk
0:46:15]} 16... Bg7 {[%clk 1:19:25]} 17. f4 {[%clk 0:46:36]} 17... d5 {[%clk
1:18:31]} 18. e5 {[%clk 0:40:10]} 18... Nh7 {[%clk 1:18:31]} 19. h4 {[%clk
0:35:31]} 19... Qd8 {[%clk 1:15:17]} 20. h5 {[%clk 0:31:59]} 20... Qh4 {[%clk
1:13:31]} 21. Qd2 {[%clk 0:21:21]} 21... Nxe5 {[%clk 1:04:56]} 22. Bf2 {[%clk
0:20:44]} 22... Ng4 {[%clk 0:57:18]} 23. Bxg4 {[%clk 0:20:34]} 23... Rxe1+
{[%clk 0:57:16]} 24. Rxe1 {[%clk 0:20:56]} 24... Qxg4 {[%clk 0:57:22]} 25. hxg6
{[%clk 0:18:43]} 25... Qxg6 {[%clk 0:53:50]} 26. Re8+ {[%clk 0:18:47]} 26... Nf8
{[%clk 0:52:48]} 27. f5 {[%clk 0:16:04]} 27... Qg4 {[%clk 0:44:09]} 28. Qe1
{[%clk 0:12:47]} 28... h5 {[%clk 0:36:38]} 29. Qe7 {[%clk 0:07:00]} 29... b6
{[%clk 0:31:16]} 30. f6 {[%clk 0:02:01]} 30... Bh6 {[%clk 0:31:09]} 31. Be3
{[%clk 0:02:16]} 31... Be6 {[%clk 0:26:59]} 32. Bxh6 {[%clk 0:01:46]} 32... Qd4+
{[%clk 0:26:49]} 33. Kh2 {[%clk 0:02:07]} 33... Qh4+ {[%clk 0:27:11]} 34. Kg1
{[%clk 0:02:35]} 34... Qd4+ {[%clk 0:24:38]} 1/2-1/2

[Variant "Standard"]
[Site "Europe Echecs"]

[Event "Sunway Sitges Chess Festival"]
[Date "2024.12.21"]
[White "Song, Edward"]
[Black "Vetokhin, Savva"]
[WhiteElo "2363"]
[BlackElo "2502"]
[Round "7.6"]
[Result "1/2-1/2"]
[TimeControl "40/5400+30:1800+30"]

1. e4 {[%clk 1:28:51]} 1... c5 {[%clk 1:30:51]} 2. Nf3 {[%clk 1:29:16]} 2... g6
{[%clk 1:31:15]} 3. d4 {[%clk 1:29:40]} 3... cxd4 {[%clk 1:31:40]} 4. Nxd4
{[%clk 1:30:06]} 4... Nc6 {[%clk 1:32:00]} 5. c4 {[%clk 1:29:55]} 5... Nf6
{[%clk 1:32:13]} 6. Nc3 {[%clk 1:30:20]} 6... d6 {[%clk 1:32:32]} 7. Be2 {[%clk
1:29:48]} 7... Nxd4 {[%clk 1:32:43]} 8. Qxd4 {[%clk 1:30:12]} 8... Bg7 {[%clk
1:33:06]} 9. Be3 {[%clk 1:30:22]} 9... O-O {[%clk 1:33:24]} 10. Qd3 {[%clk
1:30:36]} 10... a6 {[%clk 1:33:34]} 11. O-O {[%clk 1:30:26]} 11... Bd7 {[%clk
1:33:59]} 12. Rfd1 {[%clk 1:29:40]} 12... b5 {[%clk 1:34:01]} 13. cxb5 {[%clk
1:29:14]} 13... axb5 {[%clk 1:33:50]} 14. Nxb5 {[%clk 1:28:21]} 14... Bxb5
{[%clk 1:34:12]} 15. Qxb5 {[%clk 1:28:47]} 15... Rb8 {[%clk 1:34:11]} 16. Qd3
{[%clk 1:27:59]} 16... Rxb2 {[%clk 1:33:52]} 17. e5 {[%clk 1:27:09]} 17... Nd5
{[%clk 1:34:03]} 18. Qxd5 {[%clk 1:27:30]} 18... Rxe2 {[%clk 1:34:27]} 19. Qd3
{[%clk 1:26:04]} 19... Rb2 {[%clk 1:33:59]} 20. a4 {[%clk 1:20:25]} 20... Bxe5
{[%clk 1:16:23]} 21. a5 {[%clk 1:20:26]} 21... Rb4 {[%clk 0:58:40]} 22. Ra3
{[%clk 0:51:39]} 22... Qd7 {[%clk 0:49:38]} 23. a6 {[%clk 0:47:10]} 23... Ra4
{[%clk 0:48:10]} 24. a7 {[%clk 0:25:40]} 24... Ra8 {[%clk 0:46:48]} 25. Qb3
{[%clk 0:25:41]} 25... Rxa3 {[%clk 0:46:35]} 26. Qxa3 {[%clk 0:26:06]} 26... d5
{[%clk 0:43:54]} 27. Qa5 {[%clk 0:20:08]} 27... e6 {[%clk 0:43:20]} 28. f4
{[%clk 0:16:57]} 28... Bd6 {[%clk 0:41:15]} 29. Rb1 {[%clk 0:06:45]} 29... g5
{[%clk 0:32:19]} 30. fxg5 {[%clk 0:05:40]} 30... Bc7 {[%clk 0:30:13]} 31. Qc5
{[%clk 0:05:05]} 31... Bd6 {[%clk 0:29:23]} 32. Qa5 {[%clk 0:05:02]} 32... Bc7
{[%clk 0:29:44]} 33. Qc5 {[%clk 0:05:27]} 33... Bd6 {[%clk 0:30:10]} 34. Qb6
{[%clk 0:00:04]} 34... e5 1/2-1/2

[Variant "Standard"]
[Site "Europe Echecs"]

[Event "Sunway Sitges Chess Festival"]
[Date "2024.12.21"]
[White "Sofronie, Iulian"]
[Black "Alekseenko, Kirill"]
[WhiteElo "2368"]
[BlackElo "2673"]
[Round "7.7"]
[Result "0-1"]
[TimeControl "40/5400+30:1800+30"]

1. d4 {[%clk 1:30:57]} 1... Nf6 {[%clk 1:30:36]} 2. Bf4 {[%clk 1:31:17]} 2... b6
{[%clk 1:30:38]} 3. Nd2 {[%clk 1:26:11]} 3... Bb7 {[%clk 1:29:56]} 4. e3 {[%clk
1:25:42]} 4... e6 {[%clk 1:30:18]} 5. Ngf3 {[%clk 1:25:44]} 5... Nh5 {[%clk
1:28:47]} 6. Bg5 {[%clk 1:10:05]} 6... Be7 {[%clk 1:27:24]} 7. Bxe7 {[%clk
1:10:08]} 7... Qxe7 {[%clk 1:27:44]} 8. Bd3 {[%clk 1:07:47]} 8... d6 {[%clk
1:26:52]} 9. Qe2 {[%clk 1:06:44]} 9... a5 {[%clk 1:22:12]} 10. O-O-O {[%clk
1:02:43]} 10... Nd7 {[%clk 1:21:00]} 11. g4 {[%clk 1:00:17]} 11... Nhf6 {[%clk
1:21:24]} 12. Rhg1 {[%clk 1:00:29]} 12... g6 {[%clk 1:15:02]} 13. e4 {[%clk
0:58:05]} 13... e5 {[%clk 1:04:33]} 14. d5 {[%clk 0:48:27]} 14... c6 {[%clk
1:00:46]} 15. c4 {[%clk 0:38:13]} 15... Nc5 {[%clk 1:00:07]} 16. Nb1 {[%clk
0:37:38]} 16... b5 {[%clk 0:53:00]} 17. dxc6 {[%clk 0:24:19]} 17... Bxc6 {[%clk
0:53:24]} 18. Nc3 {[%clk 0:24:45]} 18... b4 {[%clk 0:53:41]} 19. Nd5 {[%clk
0:24:36]} 19... Qd8 {[%clk 0:53:47]} 20. Kb1 {[%clk 0:22:51]} 20... Nfd7 {[%clk
0:51:45]} 21. h4 {[%clk 0:21:17]} 21... Ne6 {[%clk 0:43:51]} 22. Qe3 {[%clk
0:20:39]} 22... Qb8 {[%clk 0:39:01]} 23. h5 {[%clk 0:16:27]} 23... Qa7 {[%clk
0:38:47]} 24. Qh6 {[%clk 0:15:16]} 24... O-O-O {[%clk 0:37:03]} 25. Qd2 {[%clk
0:12:34]} 25... Kb8 {[%clk 0:36:08]} 26. Rh1 {[%clk 0:12:27]} 26... Ndc5 {[%clk
0:34:39]} 27. Bc2 {[%clk 0:10:07]} 27... Ka8 {[%clk 0:34:34]} 28. Qe3 {[%clk
0:09:53]} 28... Rb8 {[%clk 0:32:52]} 29. Nf6 {[%clk 0:08:45]} 29... b3 {[%clk
0:27:52]} 30. Bxb3 {[%clk 0:08:34]} 30... Nxe4 {[%clk 0:25:16]} 31. Ba4 {[%clk
0:07:26]} 31... Bb7 {[%clk 0:25:02]} 32. Nd5 {[%clk 0:03:25]} 32... Nxf2 {[%clk
0:19:29]} 33. c5 {[%clk 0:03:31]} 33... Nxd1 {[%clk 0:18:23]} 34. Qb3 {[%clk
0:01:29]} 34... Nc3+ {[%clk 0:17:00]} 0-1

[Variant "Standard"]
[Site "Europe Echecs"]